fUSD/lending_fUSD_20241221
["ID","MTS","AMOUNT","RATE_DAILY","PERIOD"]
[346238976,1734797442366,-500.0,0.00020819,2]
[346238978,1734797442376,-500.0,0.00020819,2]
[346238979,1734797442386,-500.0,0.00020819,2]
[346238980,1734797442395,-522.27299482,0.00020819,2]
[346238981,1734797442405,-500.0,0.00020819,2]
[346238982,1734797442415,-363.01155984,0.00020819,2]
[346238983,1734797442424,-500.0,0.00020819,2]
[346238984,1734797442434,-500.0,0.00020819,2]
[346238985,1734797442443,-500.0,0.00020819,2]
[346238986,1734797442455,-439.69,0.00020819,2]
[346238987,1734797442464,-466.6,0.00020819,2]
[346238988,1734797442475,-500.0,0.00020819,2]
[346238989,1734797442485,-2143.61,0.00020819,2]
[346238990,1734797442496,-500.0,0.00020819,2]
[346238991,1734797442505,-948.2,0.00020819,2]
[346238992,1734797442515,-500.0,0.00020819,2]
[346238994,1734797442525,-500.0,0.00020819,2]
[346238995,1734797442536,-500.0,0.00020819,2]
[346238997,1734797442546,-500.0,0.00020819,2]
[346238998,1734797442556,-212.52,0.00020819,2]
[346238999,1734797442567,-500.0,0.00020819,2]
[346239000,1734797442576,-500.0,0.00020819,2]
[346239001,1734797442587,-500.0,0.00020819,2]
[346239003,1734797442596,-847.43,0.00020819,2]
[346239005,1734797442608,-500.0,0.00020819,2]
[346239007,1734797442619,-500.0,0.00020819,2]
[346239008,1734797442637,-561.1,0.00020819,2]
[346239010,1734797442647,-500.0,0.00020819,2]
[346239011,1734797442657,-500.0,0.00020819,2]
[346239012,1734797442667,-868.34,0.00020819,2]
[346239013,1734797442677,-500.0,0.00020819,2]
[346239014,1734797442687,-537.67,0.00020819,2]
[346239015,1734797442697,-500.0,0.00020819,2]
[346239016,1734797442710,-652.44,0.00020819,2]
[346239017,1734797442720,-7500.0,0.00020819,2]
[346239018,1734797442730,-500.0,0.00020819,2]
[346239019,1734797442739,-1092.18,0.00020819,2]
[346239020,1734797442749,-1395.42,0.00020819,2]
[346239021,1734797442759,-500.0,0.00020819,2]
[346239022,1734797442769,-854.91,0.00020819,2]
[346239023,1734797442779,-500.0,0.00020819,2]
[346239024,1734797442788,-1536.52,0.00020819,2]
[346239025,1734797442798,-500.0,0.00020819,2]
[346239026,1734797442808,-500.0,0.00020819,2]
[346239027,1734797442817,-500.0,0.00020819,2]
[346239028,1734797442827,-500.0,0.00020819,2]
[346239029,1734797442837,-680.52,0.00020819,2]
[346239030,1734797442847,-151.08425028,0.00020819,2]
[346239031,1734797442856,-572.68,0.00020819,2]
[346239032,1734797442865,-500.0,0.00020819,2]
[346239033,1734797442875,-500.0,0.00020819,2]
[346239034,1734797442886,-567.41,0.00020819,2]
[346239035,1734797442896,-500.0,0.00020819,2]
[346239036,1734797442905,-500.0,0.00020819,2]
[346239037,1734797442914,-500.0,0.00020819,2]
[346239038,1734797442924,-508.48,0.00020819,2]
[346239039,1734797442934,-500.0,0.00020819,2]
[346239040,1734797442944,-500.0,0.00020819,2]
[346239041,1734797442953,-500.0,0.00020819,2]
[346239042,1734797442963,-500.0,0.00020819,2]
[346239043,1734797442973,-587.62,0.00020819,2]
[346239044,1734797442983,-769.21,0.00020819,2]
[346239045,1734797442994,-1571.6,0.00020819,2]
[346239046,1734797443004,-500.0,0.00020819,2]
[346239047,1734797443013,-500.0,0.00020819,2]
[346239048,1734797443023,-500.0,0.00020819,2]
[346239049,1734797443035,-500.0,0.00020819,2]
[346239050,1734797443045,-272.06054692,0.00020819,2]
[346239051,1734797443055,-500.0,0.00020819,2]
[346239052,1734797443066,-628.47,0.00020819,2]
[346239053,1734797443076,-509.72,0.00020819,2]
[346239054,1734797443086,-623.27314104,0.00020819,2]
[346239055,1734797443096,-500.0,0.00020819,2]
[346239056,1734797443106,-500.0,0.00020819,2]
[346239057,1734797443117,-500.0,0.00020819,2]
[346239058,1734797443126,-703.8,0.00020819,2]
[346239059,1734797443139,-500.0,0.00020819,2]
[346239060,1734797443149,-643.31,0.00020819,2]
[346239061,1734797443160,-500.0,0.00020819,2]
[346239062,1734797443170,-500.0,0.00020819,2]
[346239063,1734797443180,-612.01,0.00020819,2]
[346239064,1734797443190,-500.0,0.00020819,2]
[346239065,1734797443200,-500.0,0.00020819,2]
[346239066,1734797443210,-921.58,0.00020819,2]
[346239067,1734797443221,-500.0,0.00020819,2]
[346239068,1734797443408,-504.2,0.00020819,2]
[346239069,1734797443418,-500.0,0.00020819,2]
[346239070,1734797443428,-500.0,0.00020819,2]
[346239071,1734797443438,-500.0,0.00020819,2]
[346239072,1734797443448,-500.0,0.0002082,2]
[346239073,1734797443459,-500.0,0.0002082,2]
[346239074,1734797443468,-500.0,0.0002082,2]
[346239075,1734797443478,-500.0,0.0002082,2]
[346239076,1734797443487,-500.0,0.0002082,2]
[346239077,1734797443497,-500.0,0.0002082,2]
[346239078,1734797443506,-500.0,0.0002082,2]
[346239079,1734797443515,-500.0,0.0002082,2]
[346239080,1734797443524,-500.0,0.0002082,2]
[346239081,1734797443534,-500.0,0.0002082,2]
[346239082,1734797443544,-500.0,0.0002082,2]
[346239083,1734797443554,-500.0,0.0002082,2]
[346239084,1734797443563,-500.0,0.0002082,2]
[346239085,1734797443573,-500.0,0.0002082,2]
[346239086,1734797443582,-527.22,0.0002082,2]
[346239087,1734797443592,-500.0,0.0002082,2]
[346239088,1734797443602,-500.0,0.0002082,2]
[346239089,1734797443612,-500.0,0.0002082,2]
[346239090,1734797443622,-586.55,0.0002082,2]
[346239091,1734797443632,-525.33,0.0002082,2]
[346239092,1734797443642,-500.0,0.0002082,2]
[346239093,1734797443652,-500.0,0.0002082,2]
[346239094,1734797443661,-268.89224958,0.0002082,2]
[346239095,1734797443671,-500.0,0.0002082,2]
[346239096,1734797443680,-514.41170029,0.0002082,2]
[346239097,1734797443690,-500.0,0.0002082,2]
[346239098,1734797443700,-500.0,0.0002082,2]
[346239099,1734797443711,-500.0,0.0002082,2]
[346239100,1734797443722,-500.0,0.0002082,2]
[346239101,1734797443732,-500.0,0.0002082,2]
[346239102,1734797443742,-411.6,0.0002082,2]
[346239103,1734797443752,-226.45830611,0.0002082,2]
[346239104,1734797443761,-500.0,0.0002082,2]
[346239105,1734797443771,-166.82373394,0.0002082,2]
[346239106,1734797443780,-500.0,0.0002082,2]
[346239107,1734797443790,-500.0,0.0002082,2]
[346239108,1734797443799,-500.0,0.0002082,2]
[346239109,1734797443809,-445.06304222,0.0002082,2]
[346239110,1734797443818,-500.0,0.0002082,2]
[346239111,1734797443828,-500.0,0.0002082,2]
[346239112,1734797443837,-500.0,0.0002082,2]
[346239113,1734797443848,-671.17,0.0002082,2]
[346239114,1734797443857,-329.51,0.0002082,2]
[346239115,1734797443867,-500.0,0.0002082,2]
[346239116,1734797443877,-500.0,0.0002082,2]
[346239117,1734797443887,-500.0,0.0002082,2]
[346239118,1734797443895,-500.0,0.0002082,2]
[346239119,1734797443905,-500.0,0.0002082,2]
[346239120,1734797443915,-500.0,0.0002082,2]
[346239121,1734797443924,-595.2,0.0002082,2]
[346239122,1734797443933,-249.96035049,0.0002082,2]
[346239123,1734797443943,-546.9,0.0002082,2]
[346239124,1734797443952,-500.0,0.0002082,2]
[346239125,1734797443963,-500.0,0.0002082,2]
[346239126,1734797443973,-500.0,0.0002082,2]
[346239127,1734797443985,-500.0,0.0002082,2]
[346239128,1734797443995,-500.0,0.0002082,2]
[346239129,1734797444005,-500.0,0.0002082,2]
[346239130,1734797444014,-500.0,0.0002082,2]
[346239131,1734797444025,-500.0,0.0002082,2]
[346239132,1734797444034,-500.0,0.0002082,2]
[346239133,1734797444044,-500.0,0.0002082,2]
[346239134,1734797444053,-500.0,0.0002082,2]
[346239135,1734797444063,-500.0,0.0002082,2]
[346239136,1734797444072,-500.0,0.0002082,2]
[346239137,1734797444081,-500.0,0.0002082,2]
[346239138,1734797444091,-575.49,0.0002082,2]
[346239139,1734797444100,-500.0,0.0002082,2]
[346239140,1734797444110,-500.0,0.0002082,2]
[346239141,1734797444119,-500.0,0.0002082,2]
[346239142,1734797444129,-500.0,0.0002082,2]
[346239143,1734797444138,-348.34529136,0.0002082,2]
[346239144,1734797444147,-609.39897224,0.0002082,2]
[346239145,1734797444157,-500.0,0.0002082,2]
[346239146,1734797444167,-500.0,0.0002082,2]
[346239147,1734797444176,-500.0,0.0002082,2]
[346239148,1734797444186,-500.0,0.0002082,2]
[346239149,1734797444195,-500.0,0.0002082,2]
[346239150,1734797444207,-500.0,0.0002082,2]
[346239151,1734797444217,-611.52,0.0002082,2]
[346239152,1734797444227,-500.0,0.0002082,2]
[346239153,1734797444239,-500.0,0.0002082,2]
[346239154,1734797444249,-625.42,0.0002082,2]
[346239155,1734797444258,-500.0,0.0002082,2]
[346239156,1734797444268,-500.0,0.0002082,2]
[346239157,1734797444278,-500.0,0.0002082,2]
[346239158,1734797444287,-500.0,0.0002082,2]
[346239159,1734797444297,-500.0,0.0002082,2]
[346239160,1734797444306,-500.0,0.0002082,2]
[346239161,1734797444316,-500.0,0.0002082,2]
[346239162,1734797444326,-326.521,0.0002082,2]
[346239163,1734797444335,-500.0,0.0002082,2]
[346239164,1734797444345,-500.0,0.0002082,2]
[346239165,1734797444355,-500.0,0.0002082,2]
[346239166,1734797444364,-500.0,0.0002082,2]
[346239167,1734797444374,-500.0,0.0002082,2]
[346239168,1734797444383,-500.0,0.0002082,2]
[346239169,1734797444393,-587.08,0.0002082,2]
[346239170,1734797444402,-500.0,0.0002082,2]
[346239171,1734797444411,-500.0,0.0002082,2]
[346239172,1734797444420,-1251.85,0.0002082,3]
[346239173,1734797444430,-500.0,0.0002082,2]
[346239174,1734797444441,-500.0,0.0002082,2]
[346239175,1734797444451,-500.0,0.0002082,2]
[346239176,1734797444465,-500.0,0.0002082,2]
[346239177,1734797444475,-304.72294526,0.0002082,2]
[346239178,1734797444484,-500.0,0.0002082,2]
[346239179,1734797444494,-500.0,0.0002082,2]
[346239180,1734797444504,-500.0,0.0002082,2]
[346239181,1734797444514,-634.78,0.0002082,2]
[346239182,1734797444523,-500.0,0.0002082,2]
[346239183,1734797444536,-811.2,0.0002082,2]
[346239184,1734797444546,-500.0,0.0002082,2]
[346239185,1734797444555,-500.0,0.0002082,2]
[346239186,1734797444565,-500.0,0.0002082,2]
[346239187,1734797444574,-500.0,0.0002082,2]
[346239188,1734797444584,-500.0,0.0002082,2]
[346239189,1734797444593,-500.0,0.0002082,2]
[346239190,1734797444603,-195.84593955,0.00020822,2]
[346239191,1734797444613,-1973.9,0.00020849,2]
[346239192,1734797444622,-365.07,0.00020849,2]
[346239193,1734797444632,-557.06551,0.0002086,2]
[346239194,1734797444642,-150.0,0.00020866,4]
[346239195,1734797444652,-2265.28640133,0.00020869,2]
[346239196,1734797444662,-212.4076775,0.0002087,2]
[346239197,1734797444672,-150.0,0.00020886,4]
[346239198,1734797444682,-150.0,0.00020886,4]
[346239199,1734797444693,-150.0,0.00020894,2]
[346239200,1734797444703,-250.0,0.00020894,2]
[346239201,1734797444718,-1059.0,0.00020894,2]
[346239202,1734797444729,-680.0,0.00020894,2]
[346239203,1734797444739,-500.0,0.00020894,2]
[346239204,1734797444749,-982.76,0.00020894,2]
[346239205,1734797444758,-11799.10651979,0.000209,2]
[346239206,1734797444768,-166.60393878,0.000209,2]
[346239207,1734797444778,-413.33874367,0.000209,2]
[346239208,1734797444788,-179.76419614,0.000209,2]
[346239209,1734797444797,-600.0,0.000209,7]
[346239210,1734797444806,-150.0,0.00020914,4]
[346239211,1734797444816,-195.84593955,0.00020932,2]
[346239212,1734797444826,-150.02,0.00020936,2]
[346239213,1734797444837,-150.0,0.00020962,4]
[346239214,1734797444847,-2265.28640133,0.00020975,2]
[346239215,1734797444856,-212.4076775,0.00020976,2]
[346239216,1734797444866,-64966.07777169,0.0002098,2]
[346239217,1734797444876,-150.0,0.00020999,2]
[346239218,1734797444885,-514.93,0.00020999,2]
[346239219,1734797444895,-514.93,0.00020999,2]
[346239220,1734797444905,-7500.0,0.00020999,2]
[346239221,1734797444915,-479.51924337,0.00021,3]
[346239222,1734797444926,-137542.79609483,0.00021,2]
[346239223,1734797444936,-13041.80443136,0.00021,7]
[346239224,1734797444945,-88095.78273861,0.00021,2]
[346239225,1734797444962,-500.0,0.00021,2]
[346239226,1734797444971,-2110.0,0.00021,2]
[346239227,1734797444985,-1000.0,0.00021,21]
[346239228,1734797444995,-7500.0,0.00021009,2]
[346239229,1734797445005,-150.0,0.0002101,4]
[346239230,1734797445016,-980.33,0.0002101,2]
[346239231,1734797445027,-1008.8,0.0002101,2]
[346239232,1734797445036,-1014.32,0.0002101,2]
[346239233,1734797445045,-1014.99,0.0002101,2]
[346239234,1734797445055,-989.82,0.0002101,2]
[346239235,1734797445066,-983.96,0.0002101,2]
[346239236,1734797445076,-994.31,0.0002101,2]
[346239237,1734797445086,-987.32,0.0002101,2]
[346239238,1734797445096,-994.96,0.0002101,2]
[346239239,1734797445106,-1014.91,0.0002101,2]
[346239240,1734797445116,-999.3,0.0002101,2]
[346239241,1734797445125,-981.5,0.0002101,2]
[346239242,1734797445135,-1012.25,0.0002101,2]
[346239243,1734797445145,-980.66,0.0002101,2]
[346239244,1734797445155,-994.77,0.0002101,2]
[346239245,1734797445164,-1003.22,0.0002101,2]
[346239246,1734797445173,-1009.2,0.0002101,2]
[346239247,1734797445183,-995.59,0.0002101,2]
[346239248,1734797445194,-1012.3,0.0002101,2]
[346239249,1734797445204,-1008.25,0.0002101,2]
[346239250,1734797445213,-999.53,0.0002101,2]
[346239251,1734797445223,-1017.98,0.0002101,2]
[346239252,1734797445232,-995.82,0.0002101,2]
[346239253,1734797445242,-996.31,0.0002101,2]
[346239254,1734797445252,-1016.11,0.0002101,2]
[346239255,1734797445262,-993.18,0.0002101,2]
[346239256,1734797445271,-997.61,0.0002101,2]
[346239257,1734797445281,-996.29,0.0002101,2]
[346239258,1734797445290,-1015.54,0.0002101,2]
[346239259,1734797445300,-989.89,0.0002101,2]
[346239260,1734797445310,-1017.24,0.0002101,2]
[346239261,1734797445319,-980.14,0.0002101,2]
[346239262,1734797445328,-1018.36,0.0002101,2]
[346239263,1734797445337,-989.45,0.0002101,2]
[346239264,1734797445347,-1000.6,0.0002101,2]
[346239265,1734797445356,-1017.77,0.0002101,2]
[346239267,1734797445366,-994.91,0.0002101,2]
[346239269,1734797445375,-996.99,0.0002101,2]
[346239270,1734797445385,-992.6,0.0002101,2]
[346239271,1734797445395,-1001.24,0.0002101,2]
[346239272,1734797445405,-996.54,0.0002101,2]
[346239273,1734797445415,-980.94,0.0002101,2]
[346239274,1734797445425,-985.19,0.0002101,2]
[346239275,1734797445435,-1016.46,0.0002101,2]
[346239277,1734797445444,-1002.45,0.0002101,2]
[346239279,1734797445457,-1016.85,0.0002101,2]
[346239281,1734797445467,-980.43,0.0002101,2]
[346239283,1734797445477,-1016.66,0.0002101,2]
[346239285,1734797445487,-986.87,0.0002101,2]
[346239287,1734797445496,-1002.3,0.0002101,2]
[346239289,1734797445506,-993.26,0.0002101,2]
[346239291,1734797445516,-1005.3,0.0002101,2]
[346239292,1734797445526,-996.05,0.0002101,2]
[346239294,1734797445537,-195.84593955,0.00021014,2]
[346239296,1734797445546,-998.33,0.00021014,2]
[346239299,1734797445557,-998.4,0.00021014,2]
[346239301,1734797445567,-999.19,0.00021014,2]
[346239302,1734797445577,-993.93,0.00021014,2]
[346239304,1734797445586,-989.98,0.00021014,2]
[346239305,1734797445596,-1008.96,0.00021014,2]
[346239306,1734797445605,-981.6,0.00021014,2]
[346239307,1734797445615,-1018.79,0.00021014,2]
[346239309,1734797445625,-1000.89,0.00021014,2]
[346239311,1734797445635,-1007.49,0.00021014,2]
[346239313,1734797445646,-993.21,0.00021014,2]
[346239315,1734797445656,-1011.28,0.00021014,2]
[346239317,1734797445666,-997.96,0.00021014,2]
[346239319,1734797445675,-1013.22,0.00021014,2]
[346239321,1734797445685,-1001.17,0.00021014,2]
[346239328,1734797445746,-987.41,0.00021014,2]
[346239330,1734797445756,-1018.0,0.00021014,2]
[346239332,1734797445766,-994.33,0.00021014,2]
[346239334,1734797445776,-990.82,0.00021014,2]
[346239336,1734797445786,-1009.28,0.00021017,2]
[346239338,1734797445795,-1003.61,0.00021017,2]
[346239339,1734797445805,-987.22,0.00021017,2]
[346239341,1734797445814,-1014.58,0.00021017,2]
[346239342,1734797445823,-1016.87,0.00021017,2]
[346239343,1734797445833,-1014.21,0.00021017,2]
[346239344,1734797445842,-1010.75,0.00021017,2]
[346239345,1734797445852,-985.37,0.00021017,2]
[346239346,1734797445861,-1000.29,0.00021017,2]
[346239347,1734797445870,-1004.2,0.00021017,2]
[346239348,1734797445879,-1014.01,0.00021018,2]
[346239349,1734797445890,-1005.01,0.00021027,2]
[346239350,1734797445899,-1002.86,0.00021027,2]
[346239351,1734797445909,-1005.84,0.00021027,2]
[346239352,1734797445918,-1013.59,0.00021027,2]
[346239353,1734797445928,-1004.24,0.00021027,2]
[346239354,1734797445937,-202.0,0.0002103,2]
[346239355,1734797445946,-202.0,0.0002103,2]
[346239357,1734797445957,-150.0,0.00021047,4]
[346239358,1734797445966,-150.0,0.00021047,4]
[346239359,1734797445976,-206.0,0.0002105,2]
[346239360,1734797445985,-210.0,0.0002105,2]
[346239361,1734797445997,-150.0,0.00021057,4]
[346239362,1734797446006,-999.63,0.00021072,2]
[346239363,1734797446015,-999.68,0.00021072,2]
[346239364,1734797446024,-991.11,0.00021072,2]
[346239365,1734797446034,-992.88,0.00021072,2]
[346239366,1734797446044,-1014.38,0.00021072,2]
[346239367,1734797446053,-999.82,0.00021072,2]
[346239369,1734797446062,-1015.04,0.00021072,2]
[346239370,1734797446072,-1015.39,0.00021072,2]
[346239371,1734797446082,-994.36,0.00021072,2]
[346239372,1734797446091,-2265.28640133,0.00021081,2]
[346239373,1734797446101,-212.4076775,0.00021082,2]
[346239374,1734797446110,-500.0,0.00021092,2]
[346239376,1734797446120,-500.0,0.00021092,2]
[346239378,1734797446129,-500.0,0.00021092,2]
[346239380,1734797446138,-337.81,0.00021092,2]
[346239382,1734797446148,-500.0,0.00021092,2]
[346239384,1734797446157,-500.0,0.00021092,2]
[346239386,1734797446167,-500.0,0.00021092,2]
[346239388,1734797446176,-500.0,0.00021092,2]
[346239390,1734797446186,-242.79294629,0.00021092,2]
[346239392,1734797446195,-337.1486334,0.00021092,2]
[346239394,1734797446205,-500.0,0.00021092,2]
[346239396,1734797446216,-500.0,0.00021092,2]
[346239398,1734797446225,-482.78,0.00021092,2]
[346239400,1734797446234,-500.0,0.00021092,2]
[346239402,1734797446243,-500.0,0.00021092,2]
[346239404,1734797446252,-500.0,0.00021092,2]
[346239405,1734797446261,-500.0,0.00021092,2]
[346239406,1734797446271,-472.3,0.00021092,2]
[346239407,1734797446280,-620.62,0.00021092,2]
[346239408,1734797446289,-620.62,0.00021092,2]
[346239409,1734797446299,-620.62,0.00021092,2]
[346239410,1734797446308,-620.62,0.00021092,2]
[346239411,1734797446318,-620.62,0.00021092,2]
[346239412,1734797446327,-620.62,0.00021092,2]
[346239413,1734797446336,-620.62,0.00021092,2]
[346239414,1734797446345,-620.62,0.00021092,2]
[346239415,1734797446355,-620.62,0.00021092,2]
[346239416,1734797446364,-620.62,0.00021092,2]
[346239417,1734797446373,-620.62,0.00021092,2]
[346239418,1734797446382,-620.62,0.00021092,2]
[346239419,1734797446392,-620.62,0.00021092,2]
[346239420,1734797446401,-620.62,0.00021092,2]
[346239421,1734797446410,-620.62,0.00021092,2]
[346239422,1734797446419,-620.62,0.00021092,2]
[346239423,1734797446429,-620.62,0.00021092,2]
[346239424,1734797446438,-620.62,0.00021092,2]
[346239425,1734797446447,-620.62,0.00021092,2]
[346239426,1734797446462,-620.62,0.00021092,2]
[346239427,1734797446471,-620.62,0.00021092,2]
[346239428,1734797446480,-620.62,0.00021092,2]
[346239429,1734797446490,-620.62,0.00021092,2]
[346239430,1734797446499,-620.77822716,0.00021092,2]
[346239431,1734797446509,-502.431614,0.00021092,2]
[346239432,1734797446518,-500.0,0.00021092,2]
[346239433,1734797446527,-460.92434721,0.00021092,2]
[346239434,1734797446537,-500.0,0.00021092,2]
[346239435,1734797446547,-500.0,0.00021092,2]
[346239436,1734797446557,-500.0,0.00021092,2]
[346239437,1734797446567,-500.0,0.00021092,2]
[346239438,1734797446577,-500.0,0.00021092,2]
[346239439,1734797446586,-500.0,0.00021092,2]
[346239440,1734797446595,-781.596085,0.00021092,2]
[346239441,1734797446605,-570.29,0.00021092,2]
[346239442,1734797446613,-500.0,0.00021092,2]
[346239443,1734797446622,-500.0,0.00021092,2]
[346239444,1734797446632,-798.14,0.00021092,2]
[346239445,1734797446641,-572.64199033,0.00021092,2]
[346239446,1734797446650,-328.233439,0.00021092,2]
[346239447,1734797446660,-663.4,0.00021092,2]
[346239448,1734797446670,-500.0,0.00021092,2]
[346239449,1734797446680,-1094.64,0.00021092,2]
[346239450,1734797446690,-609.22,0.00021092,2]
[346239451,1734797446699,-500.0,0.00021092,2]
[346239452,1734797446710,-798.58,0.00021092,2]
[346239453,1734797446719,-928.02,0.00021092,2]
[346239454,1734797446729,-500.0,0.00021092,2]
[346239455,1734797446739,-500.0,0.00021092,2]
[346239456,1734797446748,-500.0,0.00021092,2]
[346239457,1734797446759,-1013.69,0.00021092,2]
[346239458,1734797446768,-937.25,0.00021092,2]
[346239459,1734797446778,-569.29,0.00021092,2]
[346239460,1734797446787,-500.0,0.00021092,2]
[346239461,1734797446797,-500.0,0.00021092,2]
[346239462,1734797446806,-1474.06,0.00021092,2]
[346239463,1734797446815,-500.0,0.00021092,2]
[346239464,1734797446824,-1007.36,0.00021092,2]
[346239465,1734797446834,-2298.5,0.00021092,2]
[346239466,1734797446843,-1847.5,0.00021092,2]
[346239467,1734797446854,-3589.33,0.00021092,2]
[346239468,1734797446863,-821.09,0.00021092,2]
[346239469,1734797446873,-2033.68,0.00021092,2]
[346239470,1734797446883,-1181.71,0.00021092,2]
[346239471,1734797446892,-1769.49,0.00021092,2]
[346239472,1734797446901,-1153.87,0.00021092,2]
[346239473,1734797446911,-1408.35,0.00021092,2]
[346239474,1734797446920,-500.0,0.00021092,2]
[346239475,1734797446930,-1018.32,0.00021092,2]
[346239476,1734797446939,-553.15,0.00021092,2]
[346239477,1734797446948,-670.97,0.00021092,2]
[346239478,1734797446958,-1533.53,0.00021092,2]
[346239479,1734797446967,-500.0,0.00021092,2]
[346239480,1734797446977,-1054.93,0.00021092,2]
[346239481,1734797446990,-500.0,0.00021092,2]
[346239482,1734797447000,-2879.06,0.00021092,2]
[346239483,1734797447009,-511.4,0.00021092,2]
[346239484,1734797447019,-2569.06,0.00021092,2]
[346239485,1734797447028,-2201.9,0.00021092,2]
[346239486,1734797447038,-559.18530745,0.00021092,2]
[346239487,1734797447047,-500.0,0.00021092,2]
[346239488,1734797447057,-627.30104409,0.00021092,2]
[346239489,1734797447068,-500.0,0.00021092,2]
[346239490,1734797447077,-500.0,0.00021092,2]
[346239491,1734797447086,-500.0,0.00021092,2]
[346239492,1734797447095,-669.33,0.00021092,2]
[346239493,1734797447105,-500.0,0.00021092,2]
[346239494,1734797447115,-500.0,0.00021092,2]
[346239495,1734797447125,-500.0,0.00021092,2]
[346239496,1734797447134,-526.44,0.00021092,2]
[346239497,1734797447143,-500.0,0.00021092,2]
[346239498,1734797447154,-500.0,0.00021092,2]
[346239499,1734797447165,-500.0,0.00021092,2]
[346239500,1734797447175,-500.0,0.00021092,2]
[346239501,1734797447187,-500.0,0.00021092,2]
[346239502,1734797447197,-918.29,0.00021092,2]
[346239503,1734797447211,-746.85,0.00021092,2]
[346239504,1734797447220,-500.0,0.00021092,2]
[346239505,1734797447230,-500.0,0.00021093,2]
[346239506,1734797447239,-500.0,0.00021093,2]
[346239507,1734797447249,-500.0,0.00021093,2]
[346239508,1734797447258,-500.0,0.00021093,2]
[346239509,1734797447267,-642.02,0.00021093,2]
[346239510,1734797447277,-205.66,0.00021093,2]
[346239511,1734797447286,-500.0,0.00021093,2]
[346239512,1734797447295,-500.0,0.00021093,2]
[346239513,1734797447305,-500.0,0.00021093,2]
[346239514,1734797447314,-500.0,0.00021093,2]
[346239515,1734797447324,-500.0,0.00021093,2]
[346239516,1734797447333,-373.3,0.00021093,2]
[346239517,1734797447343,-500.0,0.00021093,2]
[346239518,1734797447352,-500.0,0.00021093,2]
[346239519,1734797447362,-500.0,0.00021093,2]
[346239520,1734797447371,-500.0,0.00021093,2]
[346239521,1734797447381,-500.0,0.00021093,2]
[346239522,1734797447391,-500.0,0.00021093,2]
[346239523,1734797447400,-500.0,0.00021093,2]
[346239524,1734797447410,-500.0,0.00021093,2]
[346239525,1734797447420,-500.0,0.00021093,2]
[346239526,1734797447429,-500.0,0.00021093,2]
[346239527,1734797447439,-500.0,0.00021093,2]
[346239528,1734797447448,-500.0,0.00021093,2]
[346239529,1734797447460,-602.64,0.00021093,2]
[346239530,1734797447472,-500.0,0.00021093,2]
[346239531,1734797447482,-500.0,0.00021093,2]
[346239532,1734797447493,-500.0,0.00021093,2]
[346239533,1734797447503,-545.19,0.00021093,2]
[346239534,1734797447514,-500.0,0.00021093,2]